bitfinex-derivatives/quotes_ETHF0:USTF0_20250704
["timestamp","ask_amount","ask_price","bid_price","bid_amount"]
[1751611580479,3.2078,2560.9,2560.8,0.78075]
[1751611580673,1.24121718,2560.9,2560.8,3.46448027]
[1751611580876,4.64035,2561.2,2561.0,0.78068]
[1751611581175,4.64035,2561.2,2561.1,0.78066]
[1751611581376,5.88125396,2561.2,2561.1,0.78066]
[1751611581576,5.88125396,2561.2,2561.0,3.46440027]
[1751611581777,4.64035,2561.2,2561.0,3.46440027]
[1751611582387,6.54343027,2561.2,2560.7,3.2078]
[1751611582680,2.68373027,2560.9,2560.5,0.78084]
[1751611582874,0.78073,2560.9,2560.7,2.68373027]
[1751611583079,0.78073,2560.9,2560.8,1.3086]
[1751611583479,0.78076,2560.8,2560.5,0.78082]
[1751611583686,0.78077,2560.8,2560.6,0.78081]
[1751611583882,0.78077,2560.8,2560.7,1.3448]
[1751611586584,0.78073,2560.9,2560.7,1.3448]
[1751611587386,0.78073,2560.9,2560.7,2.12558]
[1751611587687,2.68373027,2561.1,2560.7,1.3448]
[1751611587688,0.78075,2560.8,2560.7,1.3448]
[1751611587889,0.78074,2560.9,2560.7,2.12558]
[1751611588084,2.68373027,2561.1,2560.7,1.3448]
[1751611588284,1.23712072,2561.0,2560.9,0.78071]
[1751611589088,2.01781072,2561.0,2560.9,0.78071]
[1751611589288,0.78069,2561.0,2560.9,0.78071]
[1751611589485,0.78069,2561.0,2560.8,0.78073]
[1751611589887,3.8597,2561.2,2560.9,0.78072]
[1751611590087,0.7807,2561.0,2560.8,0.78073]
[1751611590493,0.78075,2560.8,2560.7,2.12557]
[1751611591690,0.78074,2560.9,2560.8,0.78075]
[1751611591895,0.78071,2561.0,2560.9,0.78072]
[1751611593191,0.78067,2561.1,2561.0,0.78068]
[1751611593494,0.78067,2561.1,2560.9,0.7807]
[1751611593899,0.78067,2561.1,2560.9,2.1451]
[1751611594395,0.78067,2561.1,2561.0,0.78069]
[1751611596193,4.64034,2561.2,2561.0,0.78069]
[1751611596698,3.2078,2561.2,2561.1,0.78066]
[1751611596995,0.6931,2561.4,2561.3,0.7806]
[1751611597797,0.6931,2561.4,2561.3,2.1292]
[1751611598798,1.47367,2561.4,2561.3,1.3486]
[1751611598997,1.47367,2561.4,2561.3,2.1292]
[1751611599799,1.47367,2561.4,2561.3,1.3486]
[1751611600595,0.7806,2561.3,2561.2,0.704]
[1751611600794,0.6931,2561.4,2560.9,1.3847]
[1751611600795,3.37683027,2561.4,2560.9,1.3847]
[1751611601000,0.78067,2561.1,2560.9,1.3847]
[1751611601299,0.78075,2560.8,2560.6,0.78079]
[1751611601492,2.68373027,2560.8,2560.4,3.98866]
[1751611601695,0.78083,2560.6,2560.4,3.98866]
[1751611602101,0.78083,2560.6,2560.4,5.37976]
[1751611602301,1.451,2560.7,2560.5,0.78084]
[1751611602503,1.451,2560.7,2560.5,2.17194]
[1751611603204,0.78081,2560.6,2560.5,0.78084]
[1751611603506,0.6702,2560.7,2560.4,3.98865]
[1751611603802,0.78081,2560.6,2560.4,3.98865]
[1751611604908,0.78083,2560.6,2560.4,3.98866]
[1751611605107,0.78083,2560.6,2560.4,5.36446]
[1751611605405,0.78084,2560.5,2560.4,5.36446]
[1751611606204,0.78083,2560.6,2560.4,5.36446]
[1751611607003,0.78084,2560.5,2560.4,5.36446]
[1751611607203,0.78084,2560.5,2560.4,4.5836]
[1751611607405,0.78084,2560.5,2560.4,5.36447]
[1751611608004,0.78082,2560.6,2560.5,0.78084]
[1751611609309,0.78082,2560.6,2560.4,5.36445]
[1751611611713,0.6702,2560.7,2560.5,0.78082]
[1751611611909,0.6702,2560.7,2560.5,2.08652]
[1751611612112,0.6593,2561.0,2560.8,0.78073]
[1751611612312,0.78072,2560.9,2560.8,3.2078]
[1751611612509,0.78072,2560.9,2560.8,0.78075]
[1751611613010,0.78072,2560.9,2560.8,2.08645]
[1751611613914,0.78072,2560.9,2560.8,1.3057]
[1751611614114,0.78075,2560.8,2560.7,1.43178]
[1751611614407,2.68373027,2560.9,2560.5,2.18621]
[1751611614613,0.78081,2560.6,2560.5,2.18621]
[1751611615612,2.68373027,2560.9,2560.5,2.18622]
[1751611615613,0.7808,2560.7,2560.5,2.18622]
[1751611616615,0.78077,2560.8,2560.6,0.78081]
[1751611617015,0.78077,2560.8,2560.7,0.78078]
[1751611617217,0.78074,2560.9,2560.8,0.78075]
[1751611617417,2.01932771,2560.9,2560.7,0.78076]
[1751611617615,0.78074,2560.9,2560.8,0.78075]
[1751611617816,2.01905287,2560.9,2560.8,0.78075]
[1751611618017,2.01905287,2560.9,2560.7,0.78076]
[1751611618219,0.78074,2560.9,2560.7,0.78076]
[1751611618517,0.78074,2560.9,2560.5,1.4054]
[1751611618714,0.78074,2560.9,2560.7,0.78076]
[1751611618910,0.78074,2560.9,2560.5,1.4054]
[1751611619116,1.44002,2561.0,2560.5,3.35749]
[1751611619423,1.44002,2561.0,2560.9,0.78072]
[1751611619620,2.67833483,2561.0,2560.9,0.78072]
[1751611620320,0.78073,2560.9,2560.8,0.78072]
[1751611620519,2.01904483,2560.9,2560.8,0.78072]
[1751611620717,1.23831483,2560.9,2560.8,0.78072]
[1751611621028,0.6593,2561.0,2560.9,0.78072]
[1751611621220,1.89750531,2561.0,2560.9,0.78072]
[1751611621421,1.23820531,2561.0,2560.9,0.78072]
[1751611621621,1.419,2561.3,2561.2,0.78063]
[1751611621823,2.65748531,2561.3,2561.2,0.78063]
[1751611622124,1.87688531,2561.3,2561.2,0.78063]
[1751611622921,0.6384,2561.3,2561.2,0.78063]
[1751611623627,1.419,2561.3,2561.2,0.78063]
[1751611624528,0.6384,2561.3,2561.2,0.78063]
[1751611624730,1.419,2561.3,2561.2,0.78063]
[1751611625232,0.6384,2561.3,2561.2,0.78063]
[1751611625527,3.2078,2561.4,2561.3,0.7806]
[1751611630130,3.36913063,2561.6,2561.5,0.78054]
[1751611630430,2.58862063,2561.6,2561.5,0.78054]
[1751611630730,3.36913063,2561.6,2561.5,0.78054]
[1751611631231,2.58862063,2561.6,2561.5,0.78054]
[1751611631827,2.58862063,2561.6,2561.3,1.4068]
[1751611632122,2.68373027,2561.5,2561.4,0.78057]
[1751611635830,0.78057,2561.4,2561.3,0.78058]
[1751611636130,3.46428027,2561.5,2561.4,0.78057]
[1751611636330,4.69988503,2561.5,2561.4,0.78057]
[1751611636934,0.78058,2561.4,2561.3,0.78058]
[1751611637932,3.46428027,2561.5,2561.4,0.78057]
[1751611638235,3.46428027,2561.5,2561.1,3.88834]
[1751611638236,1.3531,2561.6,2561.5,0.78054]
[1751611638537,1.92670101,2561.6,2561.5,0.78054]
[1751611638738,1.92670101,2561.6,2561.1,0.6566]
[1751611638739,0.78055,2561.5,2561.4,0.78056]
[1751611639433,0.78061,2561.3,2561.2,0.78061]
[1751611639636,0.78059,2561.4,2561.3,0.78059]
[1751611639934,0.78061,2561.3,2561.2,0.78061]
[1751611641632,0.78059,2561.4,2561.3,0.78058]
[1751611642636,1.48786,2561.5,2561.4,0.78057]
[1751611643634,1.48785,2561.5,2561.4,0.78057]
[1751611643836,0.78058,2561.4,2561.3,0.78058]
[1751611645237,1.48786,2561.5,2561.4,0.78057]
[1751611645430,2.72536871,2561.5,2561.4,0.78057]
[1751611645630,2.01806871,2561.5,2561.4,0.78057]
[1751611646931,1.23750871,2561.5,2561.4,0.78057]
[1751611647729,5.56949065,2562.0,2561.4,0.78057]
[1751611647730,3.2078,2562.0,2561.4,3.46430027]
[1751611647933,4.66509,2562.0,2561.9,0.78042]
[1751611649038,3.8847,2562.0,2561.9,0.78042]
[1751611649235,3.2078,2562.0,2561.9,0.78042]
[1751611650236,3.98819,2562.0,2561.9,0.78042]
[1751611653739,3.2078,2562.0,2561.5,0.6636]
[1751611653939,2.68373027,2561.8,2561.7,0.78048]
[1751611654142,3.46419027,2561.8,2561.6,0.78048]
[1751611654345,0.6521,2561.7,2561.6,0.78048]
[1751611654741,0.6521,2561.7,2561.6,2.17068]
[1751611656448,1.43258,2561.7,2561.5,1.44412]
[1751611656648,2.13798,2561.7,2561.6,0.78051]
[1751611658150,0.78051,2561.6,2561.5,1.44412]
[1751611658352,0.78051,2561.6,2561.5,0.6636]
[1751611658547,0.78051,2561.6,2561.5,1.44414]
[1751611659451,2.138,2561.7,2561.6,0.78051]
[1751611659847,0.78051,2561.6,2561.5,1.44412]
[1751611660652,2.13799,2561.7,2561.6,0.78051]
[1751611660849,3.37073612,2561.7,2561.6,0.78051]
[1751611661947,0.78051,2561.6,2561.5,1.44411]
[1751611662345,0.78051,2561.6,2561.5,0.78051]
[1751611663248,0.78054,2561.5,2561.4,1.3241]
[1751611663551,0.78054,2561.5,2561.4,2.10467]
[1751611665554,3.2078,2561.9,2561.4,4.00783027]
[1751611665752,1.23296101,2561.8,2561.7,0.78046]
[1751611666454,0.78041,2562.0,2561.9,0.78042]
[1751611666647,2.01367402,2562.0,2561.9,0.78042]
[1751611667346,0.78042,2561.9,2561.8,2.17333]
[1751611667654,2.01368402,2561.9,2561.8,2.17333]
[1751611669352,2.01368402,2561.9,2561.8,2.17335]
[1751611670853,1.23326402,2561.9,2561.8,2.17335]
[1751611671548,1.45218,2562.1,2561.9,0.78042]
[1751611671752,1.23187567,2562.0,2561.9,2.19702]
[1751611673354,0.78024,2562.5,2561.9,12.30813027]
[1751611673555,0.6778,2562.4,2562.3,0.78028]
[1751611673949,3.98801,2562.6,2562.5,0.78023]
[1751611674146,3.2078,2562.6,2562.5,0.78023]
[1751611674350,0.6491,2562.8,2562.7,0.78017]
[1751611674951,1.42924,2562.8,2562.7,0.78017]
[1751611675152,1.42924,2562.8,2562.6,0.78018]
[1751611675552,1.42924,2562.8,2562.6,2.12068]
[1751611675758,0.78017,2562.7,2562.6,2.12068]
[1751611676057,0.78017,2562.7,2562.6,1.3405]
[1751611677157,0.78017,2562.7,2562.6,2.1207]
[1751611677357,1.42926,2562.8,2562.6,2.1207]
[1751611677558,1.42926,2562.8,2562.7,1.3405]
[1751611678057,0.78014,2562.8,2562.7,1.3405]
[1751611678354,0.708,2562.9,2562.7,2.12067]
[1751611678956,0.708,2562.9,2562.8,0.78014]
[1751611679154,0.708,2562.9,2562.8,1.4087]
[1751611679355,0.708,2562.9,2562.8,2.18884]
[1751611680258,3.2078,2563.0,2562.8,2.18882]
[1751611680459,6.67161027,2563.0,2562.9,1.4087]
[1751611680956,6.67161027,2563.0,2562.9,2.18881]
[1751611681857,3.46381027,2563.0,2562.9,2.18881]
[1751611682159,5.89153027,2563.0,2562.7,0.78016]
[1751611682354,0.78011,2562.9,2562.8,0.52530188]
[1751611682563,3.46384027,2562.9,2562.8,0.52530188]
[1751611685367,3.46384027,2562.9,2562.8,0.52530188]
[1751611687066,6.08849076,2562.9,2562.8,0.52530188]
[1751611688165,6.08849076,2562.9,2562.4,2.15706]
[1751611688166,0.78023,2562.5,2562.4,2.15706]
[1751611688365,0.78023,2562.5,2562.4,2.68218914]
[1751611688670,0.78023,2562.5,2562.4,1.30538914]
[1751611689468,0.78023,2562.5,2562.4,0.52512914]
[1751611690064,0.78023,2562.5,2562.4,1.30538914]
[1751611690270,0.78023,2562.5,2562.4,0.52512914]
[1751611691372,0.78023,2562.5,2562.4,1.30538914]
[1751611691667,0.78023,2562.5,2562.4,0.52512914]
[1751611692171,1.3719,2562.8,2562.4,0.52512914]
[1751611692376,0.7802,2562.7,2562.6,0.78019]
[1751611692672,0.7802,2562.7,2562.6,0.52512914]
[1751611693770,0.7802,2562.7,2562.6,1.30532914]
[1751611694173,3.2078,2563.0,2562.5,2.68373027]
[1751611694477,4.63909,2563.0,2562.8,0.78013]
[1751611694668,3.859,2563.0,2562.9,1.30415752]
[1751611694870,3.34533027,2563.2,2562.9,0.52404752]
[1751611695072,4.12537027,2563.2,2563.0,0.52404752]
[1751611695271,4.12537027,2563.2,2563.1,0.52404752]
[1751611695471,5.34472308,2563.2,2563.1,0.52404752]
[1751611695676,5.34472308,2563.2,2563.1,1.30409752]
[1751611696175,1.88095281,2563.2,2563.1,1.30409752]
[1751611696378,3.859,2563.3,2563.2,0.78002]
[1751611696575,5.07842853,2563.3,2563.2,1.30406752]
[1751611696874,5.85841853,2563.3,2563.2,0.52404752]
[1751611697073,5.85837756,2563.3,2563.2,0.52404752]
[1751611697270,5.85837756,2563.3,2563.2,1.30435693]
[1751611697575,5.07838756,2563.3,2563.2,1.30435693]
[1751611697778,5.85837756,2563.3,2563.2,1.30435693]
[1751611697983,5.85837756,2563.3,2563.2,0.52433693]
[1751611698282,8.54210783,2563.3,2563.2,1.30432171]
[1751611698578,7.76211783,2563.3,2563.2,1.30432171]
[1751611698775,8.54210783,2563.3,2563.2,1.30432171]
[1751611698978,8.54210783,2563.3,2563.2,0.52430171]
[1751611700877,5.85837756,2563.3,2563.2,0.52430171]
[1751611703779,5.20717756,2563.3,2563.2,0.52430171]
[1751611703974,7.89090783,2563.3,2563.2,0.52430171]
[1751611704677,5.20717756,2563.3,2563.2,0.52430171]
[1751611704871,7.89090783,2563.3,2563.2,0.52430171]
[1751611706072,4.42718756,2563.3,2563.2,8.98805198]
[1751611706277,3.98764,2563.8,2563.6,0.77988]
[1751611706474,0.77991,2563.6,2563.3,2.6392]
[1751611706670,1.21732626,2563.5,2563.4,2.58587501]
[1751611707375,4.68098653,2563.5,2563.4,1.30837501]
[1751611707778,3.90105653,2563.5,2563.4,1.30837501]
[1751611707976,4.68098653,2563.5,2563.4,0.52841501]
[1751611709480,4.68098653,2563.5,2563.4,0.52812003]
[1751611709681,1.99725626,2563.5,2563.4,0.52812003]
[1751611711579,0.77999,2563.3,2563.2,3.2078]
[1751611711775,0.78012,2562.9,2562.7,3.98795]
[1751611711973,0.6644,2562.8,2562.7,5.32135]
[1751611712376,0.6644,2562.8,2562.3,3.2078]
[1751611712576,1.44456,2562.8,2562.5,0.78021]
[1751611712785,0.78017,2562.7,2562.6,1.3334]
[1751611713080,1.44456,2562.8,2562.6,1.3334]
[1751611713287,1.44456,2562.8,2562.6,2.1136]
[1751611714086,0.6644,2562.8,2562.6,2.1136]
[1751611714488,0.6644,2562.8,2562.7,2.11357]
[1751611714783,3.98788,2563.0,2562.7,4.01713027]
[1751611714989,3.98788,2563.0,2562.8,2.12593]
[1751611715182,3.98788,2563.0,2562.8,2.82723]
[1751611715689,1.21671158,2562.9,2562.8,2.82723]
[1751611717194,1.21671158,2562.9,2562.8,2.0471]
[1751611717394,1.99682158,2562.9,2562.8,2.0471]
[1751611717697,1.21671158,2562.9,2562.8,2.82724]
[1751611717991,1.21671158,2562.9,2562.8,2.0471]
[1751611718192,1.99682158,2562.9,2562.8,2.0471]
[1751611718694,1.99682158,2562.9,2562.5,0.78021]
[1751611718695,3.90044185,2562.9,2562.5,0.78021]
[1751611718892,0.78019,2562.7,2562.5,0.78021]
[1751611719085,0.78019,2562.7,2562.5,2.08251]
[1751611719496,0.78019,2562.7,2562.5,1.3023]
[1751611719790,0.78014,2562.8,2562.5,1.3023]
[1751611720292,0.78012,2562.9,2562.5,2.08251]
[1751611720484,3.2078,2563.0,2562.6,4.76621027]
[1751611720485,3.98789,2563.0,2562.6,4.76621027]
[1751611720684,1.21842579,2562.9,2562.7,1.3873]
[1751611720885,3.98789,2563.0,2562.7,2.0609]
[1751611721193,1.21844586,2562.9,2562.8,4.15285027]
[1751611721393,0.6501,2563.1,2562.8,5.54015027]
[1751611721595,1.43014,2563.1,2562.9,1.3873]
[1751611722096,3.90238687,2563.0,2562.3,3.2078]
[1751611722395,0.78014,2562.8,2562.4,2.85653]
[1751611722594,0.78014,2562.8,2562.5,4.07103027]
[1751611722793,0.78014,2562.8,2562.6,1.3873]
[1751611723590,0.78016,2562.7,2562.6,1.3873]
[1751611723790,0.78015,2562.8,2562.6,1.3873]
[1751611723997,0.78016,2562.7,2562.6,1.3873]
[1751611724495,0.78016,2562.7,2562.4,0.689]
[1751611724794,0.78019,2562.6,2562.5,1.3146]
[1751611724989,0.78022,2562.5,2562.4,0.689]
[1751611725191,1.43202,2562.5,2562.2,1.3146]
[1751611725397,0.6518,2562.5,2562.2,1.3146]
[1751611725590,1.43203,2562.5,2562.2,1.3146]
[1751611725888,0.78025,2562.4,2562.2,1.3146]
[1751611727196,1.43204,2562.5,2562.2,1.3146]
[1751611727897,0.78025,2562.4,2562.2,1.3146]
[1751611728399,0.78028,2562.3,2562.2,1.3146]
[1751611728594,0.78027,2562.4,2562.2,1.3146]
[1751611729296,0.78025,2562.4,2562.2,1.3146]
[1751611729501,0.78028,2562.3,2562.2,1.3146]
[1751611729992,0.78028,2562.3,2562.0,3.2078]
[1751611730294,0.78032,2562.2,2562.0,3.2078]
[1751611730488,0.78032,2562.2,2562.0,4.5244]
[1751611730895,0.6812,2562.1,2562.0,4.5244]
[1751611731701,0.6812,2562.1,2562.0,3.2078]
[1751611732000,0.6812,2562.1,2562.0,4.5244]
[1751611733805,0.78032,2562.2,2562.0,4.5244]
[1751611734006,1.45499,2562.3,2562.1,1.3885]
[1751611734205,2.68373027,2562.6,2562.1,1.3885]
[1751611734406,2.68373027,2562.6,2562.1,2.16884]
[1751611734407,0.78027,2562.4,2562.1,2.16884]
[1751611734705,0.78027,2562.4,2562.2,1.3885]
[1751611735104,0.78027,2562.4,2562.3,0.6806]
[1751611735307,0.7029,2562.7,2562.3,0.6806]
[1751611735607,4.25613065,2563.1,2562.3,0.6806]
[1751611735608,0.78021,2562.6,2562.4,1.3885]
[1751611736005,0.78018,2562.7,2562.4,2.16875]
[1751611736202,0.78018,2562.7,2562.5,1.3853]
[1751611736704,0.78019,2562.6,2562.5,1.3853]
[1751611736900,0.78018,2562.7,2562.5,1.3853]
[1751611737208,1.22106579,2562.6,2562.5,1.3853]
[1751611737409,4.67174,2562.8,2562.5,2.16551]
[1751611737608,3.8916,2562.8,2562.5,2.1655]
[1751611737799,3.8916,2562.8,2562.6,2.16549]
[1751611738004,3.2078,2562.8,2562.7,1.3853]
[1751611738203,3.2078,2562.8,2562.7,2.0316]
[1751611739207,4.4298301,2562.8,2562.7,2.0316]
[1751611739709,5.2099601,2562.8,2562.7,2.0316]
[1751611739906,4.4298301,2562.8,2562.7,2.0316]
[1751611740204,1.2220301,2562.8,2562.7,2.0316]
[1751611740606,0.7801,2562.9,2562.7,2.0316]
[1751611740907,0.78009,2562.9,2562.8,1.3162]
[1751611741104,1.22122151,2562.9,2562.8,1.3162]
[1751611741899,2.00131151,2562.9,2562.8,1.3162]
[1751611742108,0.78009,2562.9,2562.8,1.3162]
[1751611743111,1.48498,2563.0,2562.8,1.3162]
[1751611743505,0.7049,2563.0,2562.8,3.99993027]
[1751611743710,3.98784,2563.1,2562.8,4.78004027]
[1751611743911,0.78004,2563.1,2562.9,1.3373]
[1751611744115,0.78006,2563.0,2562.9,1.3373]
[1751611745023,2.00152778,2563.0,2562.9,1.3373]
[1751611745320,0.78006,2563.0,2562.9,1.3373]
[1751611746023,0.78009,2562.9,2562.7,1.301]
[1751611746222,0.78008,2563.0,2562.7,2.08115]
[1751611746421,0.78008,2563.0,2562.7,3.43735]
[1751611746722,0.78008,2563.0,2562.8,1.3562]
[1751611747926,0.78009,2562.9,2562.8,1.3562]
[1751611748125,3.90431253,2562.9,2562.3,3.2078]
[1751611748322,0.78018,2562.7,2562.3,5.94815]
[1751611748522,0.78019,2562.6,2562.4,1.3058]
[1751611750127,1.4086,2562.8,2562.4,1.3058]
[1751611750631,0.78022,2562.5,2562.4,1.3058]
[1751611751826,3.35895,2562.8,2562.4,1.3058]
[1751611752126,0.78022,2562.5,2562.4,1.3058]
[1751611754328,0.78021,2562.6,2562.4,1.3058]
[1751611754528,0.78022,2562.5,2562.4,1.3058]
[1751611758532,0.78022,2562.5,2562.4,3.98953027]
[1751611761236,0.78024,2562.4,2562.3,3.2078]
[1751611761431,0.78023,2562.5,2562.3,5.96447]
[1751611761736,1.4086,2562.8,2562.4,3.99503027]
[1751611761934,0.78021,2562.6,2562.5,1.3113]
[1751611762537,0.78018,2562.7,2562.5,2.09151]
[1751611762831,0.78018,2562.7,2562.6,7.20283027]
[1751611764035,1.48414,2562.8,2562.6,7.20283027]
[1751611764236,0.704,2562.8,2562.7,1.3892]
[1751611764432,1.92636129,2562.8,2562.7,2.87445]
[1751611764736,2.70648129,2562.8,2562.7,2.0943]
[1751611766533,0.78024,2562.4,2562.3,3.2078]
[1751611767238,2.00292073,2562.4,2562.3,3.2078]
[1751611771537,0.78034,2562.1,2562.0,3.2078]
[1751611772836,0.78044,2561.8,2561.6,3.2078]
[1751611773038,0.6471,2562.0,2561.6,6.53103027]
[1751611773241,1.42748,2562.0,2561.8,2.68373027]
[1751611773437,0.78038,2562.0,2561.9,1.3482]
[1751611775142,3.2078,2562.2,2561.9,1.3482]
[1751611775347,0.78036,2562.0,2561.9,1.3482]
[1751611780351,0.78035,2562.1,2561.9,1.3482]
[1751611780849,0.78037,2562.0,2561.9,1.3482]
[1751611781351,0.78035,2562.1,2561.9,2.12859]
[1751611781654,0.78035,2562.1,2561.9,1.3482]
[1751611781850,3.2078,2562.2,2561.7,2.68373027]
[1751611782050,3.2078,2562.2,2561.7,4.01873027]
[1751611782251,0.7804,2561.9,2561.8,1.335]
[1751611784458,0.78037,2562.0,2561.8,1.335]
[1751611784657,0.78036,2562.1,2561.8,2.11542]
[1751611785157,0.78036,2562.1,2561.9,2.19057]
[1751611786057,0.78036,2562.1,2561.9,0.78037]
[1751611786653,0.78033,2562.2,2562.0,0.78037]
[1751611787158,0.78033,2562.2,2562.1,2.0926]
[1751611787358,2.00461804,2562.2,2562.1,2.0926]
[1751611787754,1.3102,2562.3,2562.1,2.87293]
[1751611787954,2.09048,2562.3,2562.1,2.87293]
[1751611788654,2.09048,2562.3,2562.2,1.3304]
[1751611788952,3.31268782,2562.3,2562.2,1.3304]
[1751611789562,1.22220782,2562.3,2562.2,2.1107]
[1751611789761,3.8691,2562.5,2562.2,1.3304]
[1751611789953,3.8691,2562.5,2562.4,0.78024]
[1751611790152,5.87112487,2562.5,2562.3,2.11065]
[1751611790458,1.44151,2562.5,2562.4,1.3304]
[1751611790658,2.66327667,2562.5,2562.4,1.3304]
[1751611790958,1.88306667,2562.5,2562.4,2.11064]
[1751611791458,0.6613,2562.5,2562.4,2.11064]
[1751611793162,1.8830743,2562.5,2562.4,2.11064]
[1751611793554,1.8830743,2562.5,2562.4,1.3304]
[1751611794062,1.8830743,2562.5,2562.4,2.11064]
[1751611794461,1.8830743,2562.5,2562.4,1.3304]
[1751611795558,2.6632843,2562.5,2562.4,1.3304]
[1751611797857,0.78024,2562.4,2562.3,3.2078]
[1751611798062,9.4295743,2562.4,2561.9,1.3278]
[1751611798261,3.90600186,2562.3,2561.9,1.3278]
[1751611798462,0.78037,2562.0,2561.9,1.3278]
[1751611799461,0.78037,2562.0,2561.9,1.9819]
[1751611799862,1.41945,2562.1,2561.9,2.76229]
[1751611800266,0.6391,2562.1,2562.0,0.78036]
[1751611800762,0.6391,2562.1,2562.0,2.15996]
[1751611801168,1.41943,2562.1,2562.0,2.15996]
[1751611801360,1.41943,2562.1,2562.0,1.3796]
[1751611801560,5.15819,2562.7,2562.0,4.06333027]
[1751611801764,0.6512,2562.4,2562.3,6.67179027]
[1751611801966,1.22207956,2562.4,2562.3,6.67179027]
[1751611803573,2.00231956,2562.4,2562.3,6.67179027]
[1751611804071,1.22207956,2562.4,2562.3,6.67179027]
[1751611804467,0.78023,2562.5,2562.3,6.67179027]
[1751611804869,0.78023,2562.5,2562.4,0.6572]
[1751611805070,2.00253018,2562.5,2562.4,0.6572]
[1751611805966,2.00253018,2562.5,2562.3,3.2078]
[1751611806170,0.78023,2562.5,2562.3,3.98807]
[1751611806571,2.1307,2562.6,2562.4,0.78024]
[1751611806868,1.22290229,2562.5,2562.4,0.78024]
[1751611807071,2.00311229,2562.5,2562.3,3.98805]
[1751611807274,0.78021,2562.5,2562.3,3.98805]
[1751611807767,1.22302547,2562.4,2562.3,3.98805]
[1751611807972,2.00327547,2562.4,2562.2,0.78029]
[1751611808168,0.78025,2562.4,2562.2,0.78029]
[1751611808772,0.78025,2562.4,2562.3,0.78027]
[1751611809271,2.00332362,2562.4,2562.3,0.78027]
[1751611809477,0.78027,2562.3,2562.0,6.59923027]
[1751611809772,2.68373027,2562.5,2562.1,0.78032]
[1751611809968,0.78029,2562.3,2562.1,0.78032]
[1751611810169,0.7803,2562.2,2562.1,0.78032]
[1751611810369,0.7803,2562.3,2562.1,0.78032]
[1751611810570,0.7803,2562.2,2562.1,0.78032]
[1751611810869,0.78033,2562.1,2562.0,3.2078]
[1751611811074,0.78042,2561.8,2561.7,3.2078]
[1751611811873,1.43812,2561.8,2561.7,3.2078]
[1751611815479,1.43812,2561.8,2561.1,3.2078]
[1751611815480,1.95122,2561.6,2561.1,3.2078]
[1751611815680,0.78059,2561.3,2561.1,3.2078]
[1751611815876,0.78059,2561.3,2561.2,2.0326]
[1751611816075,2.0028293,2561.3,2561.2,2.0326]
[1751611816276,0.78059,2561.3,2561.2,2.0326]
[1751611822687,3.46432027,2561.3,2561.2,0.6867]
[1751611822883,1.95164,2561.1,2560.6,3.2078]
[1751611823083,0.78076,2560.7,2560.6,3.2078]
[1751611825084,1.95193,2560.7,2560.3,3.2078]
[1751611825284,2.68373027,2560.5,2560.3,3.2078]
[1751611825485,0.78085,2560.4,2560.3,3.2078]
[1751611826287,0.78085,2560.4,2560.3,4.5298]
[1751611826688,0.78085,2560.4,2560.3,5.2176]
[1751611827890,0.78084,2560.5,2560.3,5.99848]
[1751611828393,1.4438,2560.6,2560.4,0.78083]
[1751611828594,0.78082,2560.5,2560.4,1.3717]
[1751611830095,0.78082,2560.5,2560.4,2.15255]
[1751611831491,0.78085,2560.4,2560.3,3.2078]
[1751611833391,1.95244,2560.1,2559.7,3.2078]
[1751611833598,0.78113,2559.5,2559.4,1.2964]
[1751611834891,0.78116,2559.4,2559.3,3.2078]
[1751611835097,3.46489027,2559.4,2559.3,3.2078]
[1751611835889,4.16169027,2559.4,2559.3,3.2078]
[1751611840898,4.16169027,2559.4,2559.3,4.5999]
[1751611841197,3.46489027,2559.4,2559.3,4.5999]
[1751611841397,0.78116,2559.4,2559.3,4.5999]
[1751611843493,0.78115,2559.5,2559.3,5.38108]
[1751611843802,0.78116,2559.4,2559.3,4.5999]
[1751611844105,0.78116,2559.4,2559.3,5.38109]
[1751611844304,0.78116,2559.4,2559.3,4.5999]
[1751611845701,0.78115,2559.5,2559.3,5.38107]
[1751611846702,3.35133027,2559.9,2559.3,7.28363027]
[1751611846999,0.78116,2559.4,2559.3,4.5999]
[1751611847204,0.78116,2559.4,2559.3,5.38109]
[1751611847898,0.78114,2559.5,2559.4,0.78113]
[1751611848092,0.78114,2559.5,2559.4,1.3885]
[1751611848303,0.78114,2559.5,2559.4,2.16966]
[1751611849400,0.78114,2559.5,2559.4,1.3885]
[1751611849597,0.78114,2559.5,2559.4,2.16966]
[1751611849997,0.78113,2559.5,2559.4,1.3885]
[1751611850704,0.78113,2559.5,2559.4,2.16964]
[1751611853505,0.78111,2559.6,2559.5,0.7811]
[1751611855209,3.46482027,2559.7,2559.6,0.7811]
[1751611855405,4.69044293,2559.7,2559.6,0.7811]
[1751611855908,2.00671266,2559.7,2559.6,0.7811]
[1751611861112,0.78112,2559.6,2559.5,0.7811]
[1751611861313,3.46481027,2559.7,2559.6,0.7811]
[1751611861503,4.69333205,2559.7,2559.6,0.7811]
[1751611861913,3.91225205,2559.7,2559.6,0.7811]
[1751611862112,1.22852178,2559.7,2559.6,0.7811]
[1751611862312,2.00958178,2559.7,2559.6,0.7811]
[1751611864618,0.78106,2559.7,2559.6,0.7811]
[1751611865217,2.01013293,2559.7,2559.6,0.7811]
[1751611866515,4.6938632,2559.7,2559.6,0.7811]
[1751611868120,1.22907293,2559.7,2559.6,3.9889]
[1751611868322,0.78097,2560.1,2559.6,5.16049]
[1751611868512,1.42507,2560.1,2560.0,0.78096]
[1751611868817,2.6554002,2560.1,2560.0,0.78096]
[1751611870820,1.8744302,2560.1,2560.0,0.78096]
[1751611871316,0.6441,2560.1,2560.0,0.78096]
[1751611871518,0.6441,2560.1,2560.0,2.14456]
[1751611880735,1.42504,2560.1,2560.0,2.14456]